fUSD/lending_fUSD_20260612
["ID","MTS","AMOUNT","RATE_DAILY","PERIOD"]
[424888279,1781237240000,-5376.0,0.00012588,2]
[424888280,1781237292000,-417.79074014,0.00012588,2]
[424888284,1781237295000,-1115.4089038,0.00012745,2]
[424888283,1781237295000,-1100.0,0.000127,4]
[424888282,1781237295000,-215.99183634,0.0001259,2]
[424888281,1781237295000,-348.59925986,0.00012588,2]
[424888285,1781237313000,-295.39502125,0.00012745,2]
[424888286,1781237332000,-200.0,0.00012442,2]
[424888287,1781237383000,-2200.0,0.000128,4]
[424888298,1781237437000,-166.66,0.00011684,2]
[424888314,1781237438000,-99.52047967,0.00012398,2]
[424888316,1781237438000,-175.95,0.00012401,2]
[424888317,1781237438000,-69.85076424,0.00012422,2]
[424888315,1781237438000,-134.19923576,0.00012398,2]
[424888313,1781237438000,-154.19,0.00012329,2]
[424888319,1781237438000,-166.66,0.00012422,2]
[424888312,1781237438000,-166.66,0.00012176,2]
[424888311,1781237438000,-213.0088603,0.00012058,2]
[424888309,1781237438000,-199.28401661,0.00012057,2]
[424888308,1781237438000,-166.66,0.0001193,2]
[424888310,1781237438000,-58.05598339,0.00012058,2]
[424888318,1781237438000,-93.80923576,0.00012422,2]
[424888329,1781237438000,-173.49935524,0.00013088,2]
[424888321,1781237438000,-166.66,0.00012668,2]
[424888320,1781237438000,-204.61661846,0.00012615,2]
[424888333,1781237438000,-300.0,0.00013098,2]
[424888330,1781237438000,-48494.93120436,0.00013098,2]
[424888332,1781237438000,-4035.50100119,0.00013098,2]
[424888328,1781237438000,-1986.79,0.00013063,2]
[424888331,1781237438000,-8992.40446225,0.00013098,2]
[424888326,1781237438000,-166.66,0.00012914,2]
[424888324,1781237438000,-1439.12,0.00012857,2]
[424888325,1781237438000,-3300.0,0.000129,4]
[424888322,1781237438000,-230.0,0.00012715,2]
[424888323,1781237438000,-575.98607495,0.00012745,2]
[424888327,1781237438000,-152.0,0.00013006,2]
[424888368,1781237439000,-684.21536987,0.0001336,2]
[424888360,1781237439000,-13608.1767,0.00013198,2]
[424888369,1781237439000,-1986.79,0.00013382,2]
[424888364,1781237439000,-1063.13985874,0.00013297,3]
[424888365,1781237439000,-1063.13985874,0.00013297,3]
[424888363,1781237439000,-2500.0,0.00013198,2]
[424888361,1781237439000,-2000.0,0.00013198,2]
[424888362,1781237439000,-2207.4827,0.00013198,2]
[424888359,1781237439000,-250.0,0.00013198,2]
[424888356,1781237439000,-150.0,0.00013197,2]
[424888351,1781237439000,-1433326.03762861,0.00013098,2]
[424888355,1781237439000,-4343.612,0.00013197,2]
[424888357,1781237439000,-11768.4951435,0.00013198,2]
[424888353,1781237439000,-401.00955678,0.00013197,2]
[424888354,1781237439000,-248.493,0.00013197,2]
[424888352,1781237439000,-300.0,0.00013196,2]
[424888350,1781237439000,-777.2934415,0.00013098,2]
[424888349,1781237439000,-4073.83226209,0.00013098,2]
[424888348,1781237439000,-642.99800162,0.00013096,2]
[424888366,1781237439000,-2000.0,0.00013297,2]
[424888358,1781237439000,-13938.70434381,0.00013198,2]
[424888367,1781237439000,-160.0,0.0001332,2]
[424888377,1781237439000,-150.0,0.00013488,2]
[424888371,1781237439000,-13938.70434375,0.00013387,2]
[424888370,1781237439000,-11768.49514344,0.00013387,2]
[424888390,1781237439000,-186.8,0.00013669,2]
[424888392,1781237439000,-150.0,0.00013675,2]
[424888391,1781237439000,-186.8,0.00013669,2]
[424888389,1781237439000,-1323.19,0.00013669,2]
[424888388,1781237439000,-150.0,0.00013638,2]
[424888384,1781237439000,-13938.70434375,0.00013576,2]
[424888387,1781237439000,-150.0,0.00013628,2]
[424888386,1781237439000,-166.66,0.00013626,2]
[424888383,1781237439000,-11768.49514344,0.00013576,2]
[424888385,1781237439000,-150.0,0.00013581,2]
[424888379,1781237439000,-150.0,0.00013488,2]
[424888381,1781237439000,-1740.04995648,0.00013491,2]
[424888380,1781237439000,-150.0,0.00013488,2]
[424888378,1781237439000,-150.0,0.00013488,2]
[424888376,1781237439000,-150.0,0.00013488,2]
[424888372,1781237439000,-500.0,0.00013488,2]
[424888375,1781237439000,-150.0,0.00013488,2]
[424888374,1781237439000,-150.0,0.00013488,2]
[424888382,1781237439000,-150.0,0.00013535,2]
[424888373,1781237439000,-150.0,0.00013488,2]
[424888428,1781237440000,-502.91402391,0.00013698,2]
[424888425,1781237440000,-500.0,0.00013698,2]
[424888424,1781237440000,-500.0,0.00013698,2]
[424888421,1781237440000,-500.0,0.00013698,2]
[424888422,1781237440000,-500.0,0.00013698,2]
[424888423,1781237440000,-500.0,0.00013698,2]
[424888420,1781237440000,-500.0,0.00013698,2]
[424888430,1781237440000,-500.0,0.00013698,2]
[424888427,1781237440000,-500.0,0.00013698,2]
[424888429,1781237440000,-500.0,0.00013698,2]
[424888440,1781237440000,-500.0,0.00013698,2]
[424888432,1781237440000,-500.0,0.00013698,2]
[424888431,1781237440000,-500.0,0.00013698,2]
[424888435,1781237440000,-500.0,0.00013698,2]
[424888434,1781237440000,-500.0,0.00013698,2]
[424888433,1781237440000,-500.0,0.00013698,2]
[424888436,1781237440000,-500.0,0.00013698,2]
[424888437,1781237440000,-500.0,0.00013698,2]
[424888438,1781237440000,-500.0,0.00013698,2]
[424888418,1781237440000,-500.0,0.00013698,2]
[424888441,1781237440000,-500.0,0.00013698,2]
[424888439,1781237440000,-500.0,0.00013698,2]
[424888442,1781237440000,-500.0,0.00013698,2]
[424888426,1781237440000,-500.0,0.00013698,2]
[424888419,1781237440000,-500.0,0.00013698,2]
[424888410,1781237440000,-500.0,0.00013698,2]
[424888413,1781237440000,-500.0,0.00013698,2]
[424888444,1781237440000,-500.0,0.00013698,2]
[424888393,1781237440000,-150.0,0.00013675,2]
[424888394,1781237440000,-500.0,0.00013698,2]
[424888395,1781237440000,-500.0,0.00013698,2]
[424888396,1781237440000,-500.0,0.00013698,2]
[424888397,1781237440000,-500.0,0.00013698,2]
[424888398,1781237440000,-500.0,0.00013698,2]
[424888399,1781237440000,-364.35142186,0.00013698,2]
[424888401,1781237440000,-500.0,0.00013698,2]
[424888402,1781237440000,-591.63575206,0.00013698,2]
[424888403,1781237440000,-502.39573893,0.00013698,2]
[424888404,1781237440000,-500.0,0.00013698,2]
[424888405,1781237440000,-500.0,0.00013698,2]
[424888400,1781237440000,-360.35654585,0.00013698,2]
[424888406,1781237440000,-500.0,0.00013698,2]
[424888407,1781237440000,-500.0,0.00013698,2]
[424888409,1781237440000,-500.0,0.00013698,2]
[424888408,1781237440000,-500.0,0.00013698,2]
[424888414,1781237440000,-500.0,0.00013698,2]
[424888415,1781237440000,-500.0,0.00013698,2]
[424888416,1781237440000,-500.0,0.00013698,2]
[424888417,1781237440000,-500.0,0.00013698,2]
[424888412,1781237440000,-500.0,0.00013698,2]
[424888411,1781237440000,-500.0,0.00013698,2]
[424888447,1781237440000,-1489.26,0.00013698,2]
[424888481,1781237440000,-500.0,0.00013698,2]
[424888443,1781237440000,-500.0,0.00013698,2]
[424888478,1781237440000,-800.89,0.00013698,2]
[424888476,1781237440000,-800.89,0.00013698,2]
[424888479,1781237440000,-800.89,0.00013698,2]
[424888480,1781237440000,-500.0,0.00013698,2]
[424888482,1781237440000,-500.0,0.00013698,2]
[424888484,1781237440000,-500.0,0.00013698,2]
[424888483,1781237440000,-500.0,0.00013698,2]
[424888485,1781237440000,-500.0,0.00013698,2]
[424888487,1781237440000,-500.0,0.00013698,2]
[424888486,1781237440000,-500.0,0.00013698,2]
[424888488,1781237440000,-500.0,0.00013698,2]
[424888490,1781237440000,-500.0,0.00013698,2]
[424888492,1781237440000,-500.0,0.00013698,2]
[424888489,1781237440000,-500.0,0.00013698,2]
[424888491,1781237440000,-500.0,0.00013698,2]
[424888494,1781237440000,-500.0,0.00013698,2]
[424888495,1781237440000,-500.0,0.00013698,2]
[424888496,1781237440000,-500.0,0.00013698,2]
[424888445,1781237440000,-1489.26,0.00013698,2]
[424888497,1781237440000,-500.0,0.00013698,2]
[424888499,1781237440000,-500.0,0.00013698,2]
[424888500,1781237440000,-500.0,0.00013698,2]
[424888498,1781237440000,-500.0,0.00013698,2]
[424888474,1781237440000,-800.89,0.00013698,2]
[424888477,1781237440000,-800.89,0.00013698,2]
[424888493,1781237440000,-500.0,0.00013698,2]
[424888468,1781237440000,-500.0,0.00013698,2]
[424888475,1781237440000,-800.89,0.00013698,2]
[424888446,1781237440000,-1489.26,0.00013698,2]
[424888448,1781237440000,-1489.26,0.00013698,2]
[424888452,1781237440000,-644.82,0.00013698,2]
[424888449,1781237440000,-1489.26,0.00013698,2]
[424888451,1781237440000,-1489.26,0.00013698,2]
[424888453,1781237440000,-644.82,0.00013698,2]
[424888454,1781237440000,-644.82,0.00013698,2]
[424888456,1781237440000,-644.82,0.00013698,2]
[424888455,1781237440000,-644.82,0.00013698,2]
[424888459,1781237440000,-644.82,0.00013698,2]
[424888457,1781237440000,-644.82,0.00013698,2]
[424888450,1781237440000,-1489.26,0.00013698,2]
[424888461,1781237440000,-500.0,0.00013698,2]
[424888458,1781237440000,-644.82,0.00013698,2]
[424888473,1781237440000,-800.89,0.00013698,2]
[424888471,1781237440000,-800.89,0.00013698,2]
[424888470,1781237440000,-800.89,0.00013698,2]
[424888469,1781237440000,-500.0,0.00013698,2]
[424888472,1781237440000,-800.89,0.00013698,2]
[424888466,1781237440000,-500.0,0.00013698,2]
[424888465,1781237440000,-500.0,0.00013698,2]
[424888463,1781237440000,-500.0,0.00013698,2]
[424888460,1781237440000,-500.0,0.00013698,2]
[424888467,1781237440000,-500.0,0.00013698,2]
[424888522,1781237441000,-238.7383011,0.00013698,2]
[424888524,1781237441000,-500.0,0.00013698,2]
[424888525,1781237441000,-500.0,0.00013698,2]
[424888527,1781237441000,-500.0,0.00013698,2]
[424888528,1781237441000,-515.12373106,0.00013698,2]
[424888529,1781237441000,-500.0,0.00013698,2]
[424888532,1781237441000,-500.0,0.00013698,2]
[424888530,1781237441000,-500.0,0.00013698,2]
[424888531,1781237441000,-500.0,0.00013698,2]
[424888537,1781237441000,-500.0,0.00013698,2]
[424888534,1781237441000,-500.0,0.00013698,2]
[424888536,1781237441000,-500.0,0.00013698,2]
[424888535,1781237441000,-502.53527372,0.00013698,2]
[424888539,1781237441000,-500.0,0.00013698,2]
[424888541,1781237441000,-500.0,0.00013698,2]
[424888544,1781237441000,-500.0,0.00013698,2]
[424888542,1781237441000,-500.0,0.00013698,2]
[424888526,1781237441000,-500.0,0.00013698,2]
[424888533,1781237441000,-500.0,0.00013698,2]
[424888523,1781237441000,-500.0,0.00013698,2]
[424888511,1781237441000,-1101.02,0.00013698,2]
[424888521,1781237441000,-500.0,0.00013698,2]
[424888502,1781237441000,-500.0,0.00013698,2]
[424888503,1781237441000,-500.0,0.00013698,2]
[424888501,1781237441000,-500.0,0.00013698,2]
[424888505,1781237441000,-500.0,0.00013698,2]
[424888504,1781237441000,-500.0,0.00013698,2]
[424888507,1781237441000,-1101.02,0.00013698,2]
[424888506,1781237441000,-1101.02,0.00013698,2]
[424888509,1781237441000,-1101.02,0.00013698,2]
[424888520,1781237441000,-500.0,0.00013698,2]
[424888510,1781237441000,-1101.02,0.00013698,2]
[424888512,1781237441000,-1101.02,0.00013698,2]
[424888513,1781237441000,-1101.02,0.00013698,2]
[424888514,1781237441000,-500.0,0.00013698,2]
[424888516,1781237441000,-500.0,0.00013698,2]
[424888515,1781237441000,-500.0,0.00013698,2]
[424888518,1781237441000,-500.0,0.00013698,2]
[424888519,1781237441000,-500.0,0.00013698,2]
[424888517,1781237441000,-500.0,0.00013698,2]
[424888508,1781237441000,-1101.02,0.00013698,2]
[424888545,1781237441000,-500.0,0.00013698,2]
[424888547,1781237441000,-500.0,0.00013698,2]
[424888543,1781237441000,-329.2463426,0.00013698,2]
[424888572,1781237441000,-500.0,0.00013698,2]
[424888569,1781237441000,-500.0,0.00013698,2]
[424888570,1781237441000,-500.0,0.00013698,2]
[424888573,1781237441000,-500.0,0.00013698,2]
[424888577,1781237441000,-2500.0,0.00013699,2]
[424888576,1781237441000,-531.05929864,0.00013698,2]
[424888574,1781237441000,-500.0,0.00013698,2]
[424888575,1781237441000,-500.0,0.00013698,2]
[424888568,1781237441000,-500.0,0.00013698,2]
[424888579,1781237441000,-875.44,0.00013699,2]
[424888582,1781237441000,-9999.99,0.00013699,2]
[424888584,1781237441000,-499.99,0.00013699,2]
[424888581,1781237441000,-16110.14,0.00013699,2]
[424888583,1781237441000,-9999.99,0.00013699,2]
[424888585,1781237441000,-435.84,0.00013699,2]
[424888587,1781237441000,-299.99,0.00013699,2]
[424888586,1781237441000,-150.99,0.00013699,2]
[424888546,1781237441000,-500.0,0.00013698,2]
[424888578,1781237441000,-200.0,0.00013699,2]
[424888571,1781237441000,-500.0,0.00013698,2]
[424888580,1781237441000,-4999.99,0.00013699,2]
[424888566,1781237441000,-500.0,0.00013698,2]
[424888567,1781237441000,-500.0,0.00013698,2]
[424888548,1781237441000,-500.0,0.00013698,2]
[424888549,1781237441000,-500.0,0.00013698,2]
[424888550,1781237441000,-500.0,0.00013698,2]
[424888551,1781237441000,-500.0,0.00013698,2]
[424888552,1781237441000,-500.0,0.00013698,2]
[424888554,1781237441000,-500.0,0.00013698,2]
[424888556,1781237441000,-500.0,0.00013698,2]
[424888555,1781237441000,-277.3797404,0.00013698,2]
[424888553,1781237441000,-500.0,0.00013698,2]
[424888560,1781237441000,-500.0,0.00013698,2]
[424888559,1781237441000,-500.0,0.00013698,2]
[424888557,1781237441000,-500.0,0.00013698,2]
[424888561,1781237441000,-500.0,0.00013698,2]
[424888563,1781237441000,-500.0,0.00013698,2]
[424888564,1781237441000,-500.0,0.00013698,2]
[424888562,1781237441000,-500.0,0.00013698,2]
[424888558,1781237441000,-500.0,0.00013698,2]
[424888565,1781237441000,-500.0,0.00013698,2]
[424888618,1781237442000,-180.710858,0.00014046,2]
[424888624,1781237442000,-346.41,0.00014085,2]
[424888622,1781237442000,-166.66,0.00014062,2]
[424888621,1781237442000,-150.0,0.0001405,2]
[424888623,1781237442000,-2000.0,0.00014083,2]
[424888616,1781237442000,-184.85698,0.00014046,2]
[424888620,1781237442000,-150.0,0.0001405,2]
[424888617,1781237442000,-209.71396,0.00014046,2]
[424888625,1781237442000,-150.0,0.00014087,2]
[424888619,1781237442000,-178.134909,0.00014046,2]
[424888626,1781237442000,-150.0,0.00014096,2]
[424888633,1781237442000,-150.0,0.0001413,2]
[424888629,1781237442000,-187.530133,0.00014116,2]
[424888628,1781237442000,-160.0,0.00014116,2]
[424888637,1781237442000,-500.0,0.00014143,2]
[424888635,1781237442000,-644.82,0.00014143,2]
[424888631,1781237442000,-307.0068747,0.00014122,2]
[424888632,1781237442000,-150.0,0.0001413,2]
[424888640,1781237442000,-500.0,0.00014143,2]
[424888638,1781237442000,-1101.02,0.00014143,2]
[424888639,1781237442000,-500.0,0.00014143,2]
[424888636,1781237442000,-500.0,0.00014143,2]
[424888615,1781237442000,-160.0,0.00014046,2]
[424888627,1781237442000,-500.0,0.00014113,2]
[424888611,1781237442000,-250.0,0.00014,2]
[424888593,1781237442000,-150.0,0.00013722,2]
[424888612,1781237442000,-150.0,0.00014003,2]
[424888591,1781237442000,-150.0,0.00013702,2]
[424888588,1781237442000,-999.99,0.00013699,2]
[424888589,1781237442000,-1986.79,0.000137,2]
[424888590,1781237442000,-165.23,0.00013702,2]
[424888592,1781237442000,-150.0,0.00013702,2]
[424888634,1781237442000,-500.0,0.00014143,2]
[424888596,1781237442000,-13938.70434375,0.00013765,2]
[424888594,1781237442000,-500.0,0.00013762,2]
[424888595,1781237442000,-11768.49514344,0.00013765,2]
[424888597,1781237442000,-150.0,0.00013769,2]
[424888602,1781237442000,-150.0,0.00013909,2]
[424888613,1781237442000,-1986.79,0.00014019,2]
[424888601,1781237442000,-150.0,0.00013862,2]
[424888600,1781237442000,-150.0,0.00013862,2]
[424888598,1781237442000,-150.0,0.00013787,2]
[424888603,1781237442000,-150.0,0.00013916,2]
[424888606,1781237442000,-175.95,0.00013951,2]
[424888605,1781237442000,-150.0,0.00013937,2]
[424888607,1781237442000,-11768.49514344,0.00013954,2]
[424888604,1781237442000,-150.0,0.00013916,2]
[424888608,1781237442000,-13938.70434375,0.00013954,2]
[424888609,1781237442000,-150.0,0.00013956,2]
[424888610,1781237442000,-31680.53645014,0.0001399,2]
[424888614,1781237442000,-465.71051319,0.00014036,2]
[424888599,1781237442000,-150.0,0.00013815,2]
[424888641,1781237442000,-150.0,0.00014143,2]
[424888630,1781237442000,-215.060267,0.00014116,2]
[424888645,1781237442000,-150.0,0.0001419,2]
[424888671,1781237442000,-150.0,0.00014424,2]
[424888674,1781237442000,-934.92,0.00014451,2]
[424888675,1781237442000,-346.41,0.00014462,2]
[424888677,1781237442000,-150.0,0.00014471,2]
[424888676,1781237442000,-218.0,0.00014469,2]
[424888678,1781237442000,-166.66,0.00014497,2]
[424888673,1781237442000,-1489.26,0.00014447,2]
[424888680,1781237442000,-346.41,0.00014506,2]
[424888682,1781237442000,-11768.49514344,0.00014522,2]
[424888679,1781237442000,-1100.0,0.000145,5]
[424888684,1781237442000,-150.0,0.00014537,2]
[424888686,1781237442000,-150.0,0.00014558,2]
[424888688,1781237442000,-150.0,0.00014565,2]
[424888687,1781237442000,-150.0,0.00014558,2]
[424888685,1781237442000,-346.41,0.00014547,2]
[424888683,1781237442000,-13938.70434375,0.00014522,2]
[424888689,1781237442000,-346.41,0.00014584,2]
[424888690,1781237442000,-1100.0,0.000146,5]
[424888694,1781237442000,-346.41,0.00014651,2]
[424888692,1781237442000,-150.0,0.00014612,2]
[424888691,1781237442000,-150.0,0.00014612,2]
[424888693,1781237442000,-346.41,0.00014618,2]
[424888696,1781237442000,-346.41,0.00014681,2]
[424888642,1781237442000,-11768.49514344,0.00014144,2]
[424888695,1781237442000,-150.0,0.00014658,2]
[424888669,1781237442000,-5600.0,0.000144,5]
[424888672,1781237442000,-150.0,0.00014424,2]
[424888681,1781237442000,-150.0,0.00014518,2]
[424888668,1781237442000,-150.0,0.00014387,2]
[424888644,1781237442000,-382.691026,0.00014186,2]
[424888670,1781237442000,-346.41,0.00014411,2]
[424888646,1781237442000,-160.0,0.00014214,2]
[424888648,1781237442000,-150.0,0.00014237,2]
[424888647,1781237442000,-294.105298,0.00014214,2]
[424888649,1781237442000,-150.0,0.00014237,2]
[424888651,1781237442000,-150.0,0.00014237,2]
[424888650,1781237442000,-150.0,0.00014237,2]
[424888652,1781237442000,-346.41,0.00014273,2]
[424888653,1781237442000,-150.0,0.00014284,2]
[424888654,1781237442000,-209.744371,0.00014285,2]
[424888656,1781237442000,-255.0,0.00014306,2]
[424888643,1781237442000,-13938.70434375,0.00014144,2]
[424888655,1781237442000,-4400.0,0.000143,5]
[424888657,1781237442000,-150.0,0.00014331,2]
[424888666,1781237442000,-250.0,0.00014378,2]
[424888665,1781237442000,-300.0,0.00014378,2]
[424888664,1781237442000,-300.0,0.00014378,2]
[424888663,1781237442000,-150.0,0.00014377,2]
[424888667,1781237442000,-150.0,0.00014378,2]
[424888660,1781237442000,-150.0,0.00014344,2]
[424888658,1781237442000,-11768.49514344,0.00014333,2]
[424888661,1781237442000,-150.0,0.00014344,2]
[424888659,1781237442000,-13938.70434375,0.00014333,2]
[424888662,1781237442000,-346.41,0.00014351,2]
[424888755,1781237443000,-291.6690779,0.00014908,2]
[424888740,1781237443000,-370.09699277,0.00014899,2]
[424888742,1781237443000,-370.09699275,0.000149,2]
[424888738,1781237443000,-150.0,0.00014893,2]
[424888739,1781237443000,-173.950466,0.00014896,2]
[424888737,1781237443000,-5800.0,0.00014891,2]
[424888736,1781237443000,-346.41,0.00014885,2]
[424888734,1781237443000,-5800.0,0.00014874,2]
[424888733,1781237443000,-5800.0,0.00014866,2]
[424888730,1781237443000,-5800.0,0.00014858,2]
[424888735,1781237443000,-5800.0,0.00014883,2]
[424888743,1781237443000,-10831.59005543,0.000149,2]
[424888746,1781237443000,-5800.0,0.000149,2]
[424888744,1781237443000,-223.29404067,0.000149,3]
[424888747,1781237443000,-11768.49514344,0.000149,2]
[424888748,1781237443000,-13938.70434375,0.000149,2]
[424888749,1781237443000,-1499.0,0.000149,5]
[424888731,1781237443000,-346.41,0.00014862,2]
[424888751,1781237443000,-3958.75811554,0.000149,2]
[424888750,1781237443000,-370.09699275,0.000149,2]
[424888753,1781237443000,-209.92250385,0.000149,2]
[424888754,1781237443000,-346.41,0.00014907,2]
[424888752,1781237443000,-613.03796054,0.000149,2]
[424888756,1781237443000,-223.235012,0.00014925,2]
[424888745,1781237443000,-190.36690243,0.000149,10]
[424888728,1781237443000,-150.0,0.00014846,2]
[424888698,1781237443000,-1100.0,0.000147,5]
[424888727,1781237443000,-5800.0,0.00014841,2]
[424888758,1781237443000,-166.66,0.00014932,2]
[424888697,1781237443000,-150.0,0.00014687,2]
[424888700,1781237443000,-346.41,0.0001471,2]
[424888699,1781237443000,-150.0,0.00014705,2]
[424888702,1781237443000,-13938.70434375,0.00014711,2]
[424888701,1781237443000,-11768.49514344,0.00014711,2]
[424888703,1781237443000,-346.41,0.00014738,2]
[424888707,1781237443000,-150.0,0.00014752,2]
[424888710,1781237443000,-346.41,0.00014765,2]
[424888709,1781237443000,-359.4,0.00014755,2]
[424888712,1781237443000,-150.0,0.00014772,2]
[424888711,1781237443000,-150.0,0.00014772,2]
[424888714,1781237443000,-5800.0,0.00014798,2]
[424888716,1781237443000,-150.0,0.00014799,2]
[424888719,1781237443000,-5800.0,0.00014806,2]
[424888713,1781237443000,-346.41,0.0001479,2]
[424888715,1781237443000,-150.0,0.00014799,2]
[424888717,1781237443000,-1100.0,0.000148,5]
[424888721,1781237443000,-346.41,0.00014815,2]
[424888720,1781237443000,-5800.0,0.00014815,2]
[424888725,1781237443000,-150.0,0.00014836,2]
[424888722,1781237443000,-255.722909,0.00014822,2]
[424888724,1781237443000,-5800.0,0.00014832,2]
[424888723,1781237443000,-5800.0,0.00014823,2]
[424888726,1781237443000,-346.41,0.00014839,2]
[424888729,1781237443000,-5800.0,0.00014849,2]
[424888759,1781237443000,-150.0,0.00014939,2]
[424888705,1781237443000,-252.0777,0.00014748,2]
[424888757,1781237443000,-346.41,0.00014928,2]
[424888792,1781237443000,-195.90339816,0.00014999,2]
[424888790,1781237443000,-500.0,0.00014999,2]
[424888795,1781237443000,-644.82,0.00014999,2]
[424888793,1781237443000,-644.82,0.00014999,2]
[424888794,1781237443000,-644.82,0.00014999,2]
[424888797,1781237443000,-644.82,0.00014999,2]
[424888796,1781237443000,-644.82,0.00014999,2]
[424888799,1781237443000,-644.82,0.00014999,2]
[424888798,1781237443000,-644.82,0.00014999,2]
[424888801,1781237443000,-644.82,0.00014999,2]
[424888803,1781237443000,-644.82,0.00014999,2]
[424888806,1781237443000,-644.99196123,0.00014999,2]
[424888804,1781237443000,-644.82,0.00014999,2]
[424888805,1781237443000,-644.82,0.00014999,2]
[424888807,1781237443000,-500.0,0.00014999,2]
[424888802,1781237443000,-644.82,0.00014999,2]
[424888808,1781237443000,-500.0,0.00014999,2]
[424888810,1781237443000,-500.0,0.00014999,2]
[424888812,1781237443000,-500.0,0.00014999,2]
[424888813,1781237443000,-500.0,0.00014999,2]
[424888815,1781237443000,-500.0,0.00014999,2]
[424888817,1781237443000,-500.0,0.00014999,2]
[424888819,1781237443000,-500.0,0.00014999,2]
[424888818,1781237443000,-500.0,0.00014999,2]
[424888760,1781237443000,-346.41,0.00014949,2]
[424888791,1781237443000,-500.0,0.00014999,2]
[424888787,1781237443000,-500.0,0.00014999,2]
[424888800,1781237443000,-644.82,0.00014999,2]
[424888789,1781237443000,-500.0,0.00014999,2]
[424888761,1781237443000,-346.41,0.00014969,2]
[424888762,1781237443000,-221.13,0.00014985,2]
[424888788,1781237443000,-500.0,0.00014999,2]
[424888764,1781237443000,-282.8290565,0.00014986,2]
[424888765,1781237443000,-215.3825728,0.00014986,2]
[424888766,1781237443000,-193.79231313,0.00014986,2]
[424888769,1781237443000,-295.39287249,0.00014986,2]
[424888770,1781237443000,-190.82024742,0.00014986,2]
[424888772,1781237443000,-644.82,0.00014988,2]
[424888767,1781237443000,-249.66496614,0.00014986,2]
[424888768,1781237443000,-215.04143497,0.00014986,2]
[424888771,1781237443000,-500.0,0.00014988,2]
[424888774,1781237443000,-500.0,0.00014988,2]
[424888763,1781237443000,-284.03421377,0.00014986,2]
[424888776,1781237443000,-500.0,0.00014988,2]
[424888773,1781237443000,-500.0,0.00014988,2]
[424888786,1781237443000,-500.0,0.00014999,2]
[424888785,1781237443000,-500.0,0.00014999,2]
[424888782,1781237443000,-500.0,0.00014999,2]
[424888783,1781237443000,-500.0,0.00014999,2]
[424888778,1781237443000,-500.0,0.00014988,2]
[424888784,1781237443000,-500.0,0.00014999,2]
[424888780,1781237443000,-115976.93829048,0.00014989,2]
[424888781,1781237443000,-346.41,0.00014989,2]
[424888777,1781237443000,-500.0,0.00014988,2]
[424888775,1781237443000,-1101.02,0.00014988,2]
[424888779,1781237443000,-500.0,0.00014988,2]
[424888842,1781237444000,-556.76587923,0.00014999,2]
[424888830,1781237444000,-1101.02,0.00014999,2]
[424888840,1781237444000,-1101.0793492,0.00014999,2]
[424888838,1781237444000,-1101.02,0.00014999,2]
[424888837,1781237444000,-1101.02,0.00014999,2]
[424888836,1781237444000,-1101.02,0.00014999,2]